{"text_format":"1","workbook":"xlsx","n_sheets":1,"sheets":["Arkusz1"],"not_rendered":{"charts":0,"images":9,"macros":1,"external_links":0,"defined_names":2,"comments":0,"pivot_tables":0},"unopened":[],"bounds":{"document_bytes":16777216,"sheet_cells":100000,"rows_first":2000,"rows_last":500,"rows_between":2000,"halvings":0,"cell_chars":16384,"cell_head_chars":4096},"cells_cut":0,"cells_raw":0,"read":"whole","date_system":"1900"}

{"sheet":"Arkusz1","index":0,"n_rows":29,"n_cols":11,"rows_kept":29,"cut":false,"hidden":false,"merged":[[0,0,0,11],[1,8,1,10],[6,1,6,3],[18,2,18,4],[19,2,19,4],[20,2,20,4],[21,2,21,5],[16,2,16,4],[3,1,3,10],[15,2,15,4],[14,2,14,4],[17,2,17,4],[11,2,11,4]]}
["UWAGA! PRZED WYPEŁNIENIEM KLIKNIJ \"WŁĄCZ ZAWARTOŚĆ\" W GÓRNYM PASKU ABY WŁĄCZYĆ MAKRA."]
[]
[null,"KALKULATOR ZAMÓWIENIA FIBO"]
[null,"Uzupełnij żółte pola na podstawie wielkości i kształtu Twojej łazienki. Wpisz Twoje zapotrzebowanie paneli w metrach bieżących lub sztukach, a wartość zamówienia oraz potrzebna ilość akcesoriów do montażu zostanie wyliczona automatycznie."]
[null,"NAZWA ZAMÓWIENIA"]
[]
[null,"zamówienie"]
[null,"UZUPEŁNIJ ZAPOTRZEBOWANIE"]
[null,"m.b. paneli",null,"szt. paneli"]
[null,0,"lub",0,null,{"$f":"EVEN(ROUNDUP(B10/0.6,0)+D10)","v":0}]
[null,"PANELE",null,null,null,{"$f":"F10*0.6","v":0},"m2",null,null,"cena katologowa","wartość"]
[null,null,"Panel ścienny (po 2 szt paczce)",null,null,null,{"$f":"F10*1.488","v":0},null,null,48.1,{"$f":"G12*J12","v":0}]
[null,null,null,null,null,null,{"$f":"F10&\" szt.\"","v":"0 szt."}]
[null,"AKCESORIA",null,null,null,null,"szt.",null,null,"cena katologowa","wartość"]
[null,null,"Profil startowy 2400mm - ALU",null,null,{"$f":"F$11","v":0},{"$f":"CEILING(F15*H15,I15)","v":0},{"$f":"1/2.4","v":0.41666666666666669},1,18.3,{"$f":"G15*J15","v":0}]
[null,null,"Fibo Seal\nuszczelniacz 290 ml",null,null,{"$f":"F$11","v":0},{"$f":"CEILING(F16*H16,I16)","v":0},{"$f":"30/100","v":0.3},1,9.3000000000000007,{"$f":"G16*J16","v":0}]
[null,null,"Fibo Clean\npreparat do usuwania uszczelniacza 400 ml",null,null,{"$f":"F$11","v":0},{"$f":"CEILING(F17*H17,I17)","v":0},{"$f":"13/100","v":0.13},1,9.3000000000000007,{"$f":"G17*J17","v":0}]
[null,null,"Fibo Wipes\nściereczki 35 szt.",null,null,{"$f":"F$11","v":0},{"$f":"CEILING(F18*H18,I18)","v":0},{"$f":"13/100","v":0.13},1,7.5,0]
[null,null,"Fibo Wkręty 200 szt.\ndo paneli ściennych 3,0 x 35",null,null,{"$f":"F$11","v":0},{"$f":"CEILING(F19*H19,I19)","v":0},{"$f":"(18)/100","v":0.18},1,13,0]
[null,null,"Profil narożny wewnętrzny 90st\n ukryty 2360mm - ALU",null,null,null,0,null,null,14.8,0]
[null,null,"Profil narożny wewnętrzny 90st\ndwuczęściowy 2400mm - ALU",null,null,null,0,null,null,18.899999999999999,0]
[null,null,"Profil narożny zewnętrzny 90st\n2400mm - ALU",null,null,null,0,null,null,26.2,0]
[null,null,null,null,null,null,null,null,null,null,{"$f":"SUM(K15:K22)+K12","v":0}]
[null,null,null,null,null,null,null,null,null,"Rabat",0]
[null,null,null,null,null,null,null,null,null,"Wartość całkowita",{"$f":"(K23)-((K23)*K24)","v":0}]
[]
[]
[]
[null,null,null,null,null,null,null,null,null,null,"fibosystem.com"]